bitfinex-derivatives/quotes_BTCF0:USTF0_20250405
["timestamp","ask_amount","ask_price","bid_price","bid_amount"]
[1743867987821,0.2643334,82546.0,82545.0,0.00592]
[1743867988410,0.0848395,82540.0,82539.0,0.5177248]
[1743867989315,0.1771,82540.0,82539.0,0.66169187]
[1743867989513,0.1771,82540.0,82539.0,0.57885127]
[1743867989916,0.3608,82552.0,82539.0,0.93965127]
[1743867990111,0.03327636,82571.0,82551.0,0.3608]
[1743867990307,0.0424078,82564.0,82560.0,0.3608]
[1743867990611,0.1757,82563.0,82560.0,0.4174]
[1743867990814,0.17666,82563.0,82560.0,0.4174]
[1743867991216,0.17666,82563.0,82560.0,0.5022189]
[1743867991420,0.17666,82563.0,82561.0,0.03321817]
[1743867991625,0.094,82562.0,82561.0,0.03409817]
[1743867991919,0.09496,82562.0,82561.0,0.03409817]
[1743867992122,0.18846,82562.0,82561.0,0.03409817]
[1743867993020,0.00018176,82570.0,82561.0,0.03409817]
[1743867993219,0.00018176,82570.0,82569.0,0.3608]
[1743867993427,0.00018176,82570.0,82569.0,0.36192]
[1743867993622,0.00138177,82570.0,82569.0,0.4176]
[1743867994412,0.00138177,82570.0,82569.0,0.35701817]
[1743867994715,0.00238177,82570.0,82569.0,0.35701817]
[1743867995317,0.00138177,82570.0,82569.0,0.36001817]
[1743867995514,0.00538177,82570.0,82569.0,0.36001817]
[1743867995721,0.00538177,82570.0,82569.0,0.45395514]
[1743867996229,0.00138177,82570.0,82569.0,0.54964544]
[1743867997519,0.00138177,82570.0,82569.0,0.48906361]
[1743867999018,0.00138177,82570.0,82569.0,0.34228361]
[1743867999328,0.00138177,82570.0,82569.0,0.39776361]
[1743867999624,0.00138177,82570.0,82569.0,0.10264727]
[1743867999932,0.27159047,82570.0,82569.0,0.01212727]
[1743868000120,0.35859047,82570.0,82569.0,0.01324727]
[1743868000321,0.27378177,82570.0,82569.0,0.01324727]
[1743868000517,0.27378177,82570.0,82567.0,0.31346544]
[1743868000715,0.0848108,82568.0,82567.0,0.0089539]
[1743868000915,0.0848183,82561.0,82553.0,0.05562176]
[1743868001133,0.1784192,82560.0,82553.0,0.05562176]
[1743868001316,0.0936,82560.0,82553.0,0.05562176]
[1743868001520,0.0914,82559.0,82553.0,0.05562176]
[1743868001722,0.0914,82559.0,82553.0,0.00018176]
[1743868001916,0.0936,82558.0,82553.0,0.00018176]
[1743868002117,0.0848252,82554.0,82553.0,0.00018176]
[1743868002632,0.0848252,82554.0,82553.0,0.01118176]
[1743868002831,0.2717252,82554.0,82553.0,0.01118176]
[1743868003227,0.2717252,82554.0,82553.0,0.01426657]
[1743868003421,0.2717252,82554.0,82553.0,0.02026657]
[1743868003622,0.0848272,82552.0,82551.0,0.5369353]
[1743868004135,0.0848272,82552.0,82551.0,0.3608]
[1743868004534,0.1869,82554.0,82551.0,0.3608]
[1743868004731,0.2727254,82554.0,82552.0,0.0907]
[1743868005031,0.2727259,82554.0,82552.0,0.0907]
[1743868005224,0.2735259,82554.0,82553.0,0.003]
[1743868005423,0.2735259,82554.0,82553.0,0.01292893]
[1743868005932,0.2735259,82554.0,82553.0,0.00992893]
[1743868006321,0.1887,82554.0,82553.0,0.00992893]
[1743868006520,0.0018,82554.0,82552.0,0.1278735]
[1743868006741,0.001,82554.0,82553.0,0.0917]
[1743868007032,0.001,82554.0,82553.0,0.09234]
[1743868007033,0.002,82554.0,82553.0,0.09234]
[1743868007426,0.002,82554.0,82553.0,0.171477]
[1743868007634,0.17935492,82567.0,82553.0,0.1749508]
[1743868007834,0.18003492,82567.0,82566.0,0.3608]
[1743868008029,0.18003492,82567.0,82566.0,0.36148]
[1743868008226,0.18003492,82567.0,82566.0,0.4462928]
[1743868008536,0.18003492,82567.0,82566.0,0.36148]
[1743868008729,0.18103492,82567.0,82566.0,0.63859682]
[1743868008922,0.18103492,82567.0,82566.0,0.99939682]
[1743868009537,0.18103492,82567.0,82566.0,0.93881499]
[1743868009834,0.18035492,82567.0,82566.0,0.93881499]
[1743868011337,0.26516672,82567.0,82566.0,0.71677817]
[1743868011638,0.0864918,82567.0,82566.0,0.71677817]
[1743868011837,0.0864918,82567.0,82566.0,0.00068]
[1743868011838,0.2698918,82567.0,82566.0,0.00068]
[1743868012040,0.0848149,82564.0,82563.0,0.0865]
[1743868012337,0.00068,82564.0,82563.0,0.08726]
[1743868012636,0.0854949,82564.0,82563.0,0.02667817]
[1743868013027,0.2682949,82564.0,82563.0,0.00076]
[1743868014233,0.18348,82564.0,82563.0,0.00076]
[1743868014429,0.09218,82564.0,82563.0,0.00076]
[1743868015636,0.09218,82564.0,82560.0,0.0902]
[1743868015637,0.00068,82564.0,82560.0,0.11519667]
[1743868015845,0.0865,82569.0,82562.0,0.0848168]
[1743868016030,0.0924,82568.0,82565.0,0.0424066]
[1743868016230,0.00118176,82570.0,82568.0,0.0424053]
[1743868016231,0.00018176,82570.0,82568.0,0.0424053]
[1743868016428,0.00110176,82570.0,82569.0,0.1758097]
[1743868016633,0.00110176,82570.0,82569.0,0.2693497]
[1743868017240,0.00110176,82570.0,82569.0,0.18454]
[1743868017629,0.00110176,82570.0,82569.0,0.09164]
[1743868017936,0.08591046,82570.0,82569.0,0.00064]
[1743868018640,0.08691046,82570.0,82567.0,0.30085817]
[1743868018842,0.08691046,82570.0,82567.0,0.30197817]
[1743868018843,0.1751,82569.0,82567.0,0.30197817]
[1743868019141,0.17630001,82569.0,82568.0,0.0933]
[1743868019531,0.17630001,82569.0,82568.0,0.09442]
[1743868019929,0.17630001,82569.0,82568.0,0.18642]
[1743868020632,0.26110971,82569.0,82568.0,0.09442]
[1743868020833,0.0848124,82567.0,82561.0,0.00018176]
[1743868021132,0.2598133,82566.0,82561.0,0.27729858]
[1743868021333,0.084814,82565.0,82562.0,0.0908]
[1743868021533,0.08601401,82565.0,82562.0,0.0908]
[1743868021739,0.1746,82564.0,82562.0,0.03021817]
[1743868021929,0.0848159,82563.0,82562.0,0.03021817]
[1743868022138,0.08593591,82563.0,82562.0,0.03021817]
[1743868022338,0.26053591,82563.0,82562.0,0.03021817]
[1743868022539,0.0848169,82562.0,82561.0,0.00018176]
[1743868022946,0.26533691,82562.0,82561.0,0.00018176]
[1743868023848,0.18052001,82562.0,82561.0,0.00018176]
[1743868024034,0.09372001,82562.0,82561.0,0.08499976]
[1743868024235,0.0868,82569.0,82568.0,0.0848108]
[1743868024440,0.00018176,82570.0,82568.0,0.087]
[1743868024747,0.00130177,82570.0,82568.0,0.1718104]
[1743868024948,0.00130177,82570.0,82569.0,0.0848097]
[1743868025350,0.00130177,82570.0,82569.0,0.44932652]
[1743868025552,0.19377799,82571.0,82570.0,0.0848087]
[1743868025953,0.19377799,82571.0,82570.0,0.2623087]
[1743868026855,0.19377799,82571.0,82570.0,0.53942552]
[1743868027043,0.0926,82575.0,82572.0,0.0848062]
[1743868027044,0.17987842,82574.0,82572.0,0.0848062]
[1743868027244,0.17987842,82574.0,82573.0,0.5383]
[1743868027845,0.17987842,82574.0,82573.0,0.56252377]
[1743868028654,0.00018176,82579.0,82578.0,0.0848005]
[1743868029151,0.00018176,82579.0,82578.0,0.1774005]
[1743868029757,0.00018176,82579.0,82578.0,0.36971682]
[1743868029953,0.00018176,82579.0,82573.0,0.4880077]
[1743868030158,0.00094176,82579.0,82573.0,0.63855682]
[1743868030851,0.00094176,82579.0,82573.0,0.57797499]
[1743868031246,0.00394176,82579.0,82573.0,0.57797499]
[1743868031756,0.0956,82578.0,82574.0,0.093]
[1743868031953,0.09636,82578.0,82574.0,0.09364]
[1743868032460,0.00076,82578.0,82577.0,0.0848015]
[1743868032655,0.0868,82594.0,82579.0,0.0423997]
[1743868032953,0.0868,82594.0,82592.0,0.3608]
[1743868032954,0.00076,82594.0,82592.0,0.3608]
[1743868033149,0.0423905,82597.0,82592.0,0.36148]
[1743868033349,0.0847851,82593.0,82592.0,0.36148]
[1743868033562,0.00076,82593.0,82592.0,0.36148]
[1743868033757,0.4031877,82603.0,82592.0,0.36148]
[1743868033961,0.00076,82603.0,82596.0,0.084781]
[1743868034259,0.00076,82603.0,82599.0,0.3608]
[1743868034460,0.00076,82603.0,82602.0,0.0847759]
[1743868034661,0.00076,82603.0,82602.0,0.00064]
[1743868034857,0.24900839,82605.0,82602.0,0.1303274]
[1743868035053,0.00384,82603.0,82602.0,0.18992875]
[1743868035659,0.18987214,82605.0,82602.0,0.14754135]
[1743868036064,0.00076,82603.0,82602.0,0.42465817]
[1743868036560,0.0899,82604.0,82602.0,0.42401817]
[1743868036756,0.003,82603.0,82602.0,0.42401817]
[1743868037067,0.007,82603.0,82602.0,0.0689061]
[1743868037259,0.005,82603.0,82602.0,0.002]
[1743868037455,0.005,82603.0,82602.0,0.06249834]
[1743868037762,0.0887748,82603.0,82602.0,0.06249834]
[1743868037963,0.1758748,82603.0,82602.0,0.06249834]
[1743868038358,0.1758748,82603.0,82602.0,0.06049834]
[1743868038559,0.1758748,82603.0,82602.0,0.002]
[1743868038950,0.0911,82603.0,82602.0,0.002]
[1743868039358,0.0911,82603.0,82602.0,0.01111383]
[1743868039559,0.1758748,82603.0,82602.0,0.01111383]
[1743868039766,0.1718748,82603.0,82602.0,0.01611383]
[1743868039965,0.0847779,82600.0,82599.0,0.316332]
[1743868040155,0.0423888,82601.0,82592.0,0.3608]
[1743868040355,0.0847803,82598.0,82592.0,0.36152]
[1743868040662,0.0952,82597.0,82592.0,0.36152]
[1743868040856,0.09592,82597.0,82592.0,0.42279412]
[1743868041058,0.0847838,82595.0,82592.0,0.42279412]
[1743868041252,0.0847851,82593.0,82592.0,0.42279412]
[1743868041455,0.0856251,82593.0,82592.0,0.42279412]
[1743868041859,0.1808251,82593.0,82592.0,0.42279412]
[1743868042054,0.1808251,82593.0,82592.0,0.43171429]
[1743868042366,0.18264,82593.0,82592.0,0.43171429]
[1743868042565,0.08264,82593.0,82592.0,0.40971429]
[1743868042868,0.16838511,82593.0,82592.0,0.40971429]
[1743868043065,0.16838511,82593.0,82592.0,0.34913246]
[1743868043471,0.16838511,82593.0,82592.0,0.07091429]
[1743868043667,0.0847933,82585.0,82584.0,0.00018165]
[1743868043970,0.0847933,82585.0,82542.0,0.0424184]
[1743868043971,0.36164,82585.0,82542.0,0.0424184]
[1743868044267,0.0848149,82564.0,82548.0,0.0848308]
[1743868044468,0.00072,82564.0,82544.0,0.3608]
[1743868044670,0.0848272,82552.0,82551.0,0.28992981]
[1743868044962,0.00072,82552.0,82551.0,0.37475801]
[1743868045158,0.0911,82567.0,82553.0,0.042413]
[1743868045159,0.00018128,82560.0,82553.0,0.042413]
[1743868045363,0.00018128,82560.0,82553.0,0.06274976]
[1743868045566,0.0848252,82554.0,82553.0,0.00064]
[1743868045764,0.0856252,82554.0,82553.0,0.00064]
[1743868046068,0.0856252,82554.0,82551.0,0.65910813]
[1743868046069,0.0848272,82552.0,82551.0,0.36985832]
[1743868046258,0.0857472,82552.0,82551.0,0.37077832]
[1743868047663,0.5345472,82552.0,82551.0,0.00997832]
[1743868047969,0.0424164,82547.0,82543.0,0.00018165]
[1743868048160,0.0848354,82544.0,82543.0,0.00082165]
[1743868048360,0.0858354,82544.0,82543.0,0.00082165]
[1743868049072,0.0848385,82541.0,82540.0,0.30103982]
[1743868049269,0.0859185,82541.0,82540.0,0.31082796]
[1743868050061,0.00108,82541.0,82540.0,0.45737075]
[1743868050363,0.002,82544.0,82540.0,0.45737075]
[1743868050569,0.002,82544.0,82541.0,0.1823]
[1743868050758,0.001,82544.0,82541.0,0.1823]
[1743868050959,0.0946,82551.0,82543.0,0.4456365]
[1743868051159,0.0946,82551.0,82550.0,0.3608]
[1743868051670,0.1794282,82551.0,82550.0,0.3608]
[1743868051870,0.0848334,82546.0,82545.0,0.094]
[1743868052073,0.00108,82546.0,82545.0,0.39883499]
[1743868052265,0.0848321,82548.0,82545.0,0.39883499]
[1743868052573,0.21518199,82575.0,82545.0,0.27171817]
[1743868052574,0.0848173,82562.0,82545.0,0.27171817]
[1743868052773,0.0864,82566.0,82555.0,0.3608]
[1743868052975,0.0848206,82559.0,82556.0,0.0883]
[1743868053269,0.0848213,82558.0,82556.0,0.0883]
[1743868053573,0.0848213,82558.0,82556.0,0.18581824]
[1743868053974,0.0848221,82557.0,82556.0,0.18581824]
[1743868054269,0.001,82560.0,82556.0,0.18581824]
[1743868054870,0.00208,82560.0,82556.0,0.18581824]
[1743868055072,0.001,82560.0,82556.0,0.12523641]
[1743868055273,0.0896,82559.0,82557.0,0.0946]
[1743868055776,0.001,82558.0,82557.0,0.1794221]
[1743868055970,0.07231558,82569.0,82567.0,0.0848111]
[1743868056176,0.07351559,82569.0,82568.0,0.0946]
[1743868056374,0.00120001,82569.0,82568.0,0.1893]
[1743868056574,0.0954,82579.0,82568.0,0.1893]
[1743868056575,0.0954,82579.0,82569.0,0.0848091]
[1743868056776,0.0954,82579.0,82570.0,0.084808]
[1743868056977,0.0954,82579.0,82569.0,0.19765539]
[1743868057170,0.0954,82579.0,82569.0,0.29517363]
[1743868057566,0.09648,82579.0,82569.0,0.29517363]
[1743868057766,0.18128,82579.0,82569.0,0.29517363]
[1743868058075,0.18128,82579.0,82569.0,0.21036453]
[1743868058674,0.09648,82579.0,82576.0,0.3608]
[1743868058977,0.00108,82579.0,82577.0,0.1799015]
[1743868059164,0.00108,82579.0,82577.0,0.2746015]
[1743868059368,0.00108,82579.0,82578.0,0.0848005]
[1743868059871,0.23265683,82582.0,82580.0,0.0847977]
[1743868060070,0.23373683,82582.0,82581.0,0.2741]
[1743868060271,0.23373683,82582.0,82581.0,0.27474]
[1743868060778,0.14443683,82582.0,82581.0,0.3595374]
[1743868060981,0.14335683,82582.0,82581.0,0.3595374]
[1743868061276,0.14335683,82582.0,82581.0,0.29895557]
[1743868061871,0.14335683,82582.0,82581.0,0.39647381]
[1743868062477,0.14635683,82582.0,82581.0,0.39647381]
[1743868062675,0.14635683,82582.0,82581.0,0.31167641]
[1743868062970,0.003,82582.0,82581.0,0.09574]
[1743868063174,0.0423992,82580.0,82578.0,0.001]
[1743868063376,0.1787995,82579.0,82578.0,0.00172]
[1743868063576,0.18398,82579.0,82578.0,0.00072]
[1743868063780,0.08998,82579.0,82578.0,0.00072]
[1743868064173,0.0889,82579.0,82574.0,0.0848036]
[1743868064378,0.0889,82579.0,82578.0,0.0848005]
[1743868064677,0.09022,82579.0,82578.0,0.0854405]
[1743868064865,0.0889,82579.0,82578.0,0.2692405]
[1743868065577,0.003,82582.0,82578.0,0.28295824]
[1743868065780,0.0847995,82579.0,82578.0,0.00164]
[1743868066073,0.0861595,82579.0,82578.0,0.00164]
[1743868066475,0.2701595,82579.0,82578.0,0.00164]
[1743868067278,0.2701595,82579.0,82573.0,0.03655817]
[1743868067469,0.2721595,82579.0,82573.0,0.03655817]
[1743868069269,0.0848007,82578.0,82573.0,0.03655817]
[1743868069467,0.0863209,82578.0,82573.0,0.03755817]
[1743868069667,0.1836,82577.0,82573.0,0.03755817]
[1743868069877,0.0848046,82574.0,82573.0,0.001]
[1743868070279,0.0848056,82573.0,82572.0,0.30121817]
[1743868070465,0.2680056,82573.0,82572.0,0.30121817]
[1743868071279,0.2695256,82573.0,82572.0,0.30121817]
[1743868072877,0.41308997,82573.0,82572.0,0.30121817]
[1743868073070,0.0848077,82571.0,82570.0,0.61812]
[1743868073270,0.0848077,82571.0,82570.0,0.55753817]
[1743868073578,0.2601077,82571.0,82570.0,0.55753817]
[1743868074378,0.2616277,82571.0,82570.0,0.55753817]
[1743868074580,0.2616277,82571.0,82570.0,0.55853817]
[1743868074781,0.00152,82571.0,82570.0,0.64334687]
[1743868074966,0.14356437,82573.0,82570.0,0.64334667]
[1743868075279,0.0879,82572.0,82570.0,0.55853817]
[1743868075484,0.08942,82572.0,82571.0,0.1886]
[1743868075675,0.0879,82572.0,82571.0,0.1886]
[1743868075879,0.0879,82572.0,82571.0,0.28611824]
[1743868076189,0.08942,82572.0,82571.0,0.28611824]
[1743868076479,0.08942,82572.0,82571.0,0.22553641]
[1743868076679,0.0879,82572.0,82571.0,0.22553641]
[1743868077474,0.08946001,82572.0,82571.0,0.22553641]
[1743868077679,0.08946001,82572.0,82571.0,0.09751824]
[1743868077982,0.17426671,82572.0,82567.0,0.0916]
[1743868078180,0.0916,82571.0,82567.0,0.0916]
[1743868078384,0.0916,82571.0,82566.0,0.00018165]
[1743868078385,0.0848107,82569.0,82566.0,0.00018165]
[1743868078686,0.0916,82568.0,82566.0,0.00018165]
[1743868078878,0.1877,82568.0,82566.0,0.00018165]
[1743868079480,0.1877,82568.0,82565.0,0.39439982]
[1743868080080,0.1877,82568.0,82567.0,0.001]
[1743868080472,0.1877,82568.0,82567.0,0.0858118]
[1743868080872,0.1877,82568.0,82567.0,0.2631118]
[1743868081080,0.1877,82568.0,82567.0,0.09751824]
[1743868081780,0.1877,82568.0,82567.0,0.001]
[1743868082479,0.1877,82568.0,82565.0,0.30121817]
[1743868082780,0.1877,82568.0,82565.0,0.39873641]
[1743868083682,0.1877,82568.0,82565.0,0.38703197]
[1743868084079,0.1877,82568.0,82565.0,0.47184537]
[1743868084284,0.1877,82568.0,82565.0,0.38703157]
[1743868085384,0.1877,82568.0,82565.0,0.32644974]
[1743868085788,0.1877,82568.0,82565.0,0.32644964]
[1743868086182,0.36689604,82568.0,82565.0,0.32644964]
[1743868086483,0.36689604,82568.0,82566.0,0.0848128]
[1743868086685,0.36689604,82568.0,82565.0,0.24163634]
[1743868086880,0.0848128,82566.0,82565.0,0.24163634]
[1743868087499,0.2674128,82566.0,82565.0,0.24163634]
[1743868087786,0.1826,82566.0,82565.0,0.24063634]
[1743868088186,0.1826,82566.0,82558.0,0.084821]
[1743868088187,0.2674128,82566.0,82552.0,0.97888]
[1743868088384,0.0848173,82562.0,82553.0,0.0848258]
[1743868088592,0.1917,82561.0,82552.0,0.97888]
[1743868088790,0.0424104,82559.0,82552.0,1.07639824]
[1743868088992,0.1917,82558.0,82552.0,1.07639824]
[1743868089189,0.1917,82558.0,82552.0,1.16122524]
[1743868089393,0.1917,82558.0,82556.0,0.0848226]
[1743868089696,0.0954,82558.0,82557.0,0.1811221]
[1743868089992,0.0954,82558.0,82557.0,0.2718221]
[1743868090192,0.0964,82558.0,82557.0,0.2718221]
[1743868090498,0.002,82558.0,82557.0,0.2718221]
[1743868090894,0.0939,82567.0,82566.0,0.0848128]
[1743868091191,0.17919604,82568.0,82567.0,0.0848118]
[1743868091379,0.21518199,82568.0,82567.0,0.0848118]
[1743868091580,0.21518199,82568.0,82567.0,0.36473004]
[1743868091983,0.216742,82568.0,82567.0,0.36473004]
[1743868094587,0.216742,82568.0,82567.0,0.30414821]
[1743868094895,0.00156001,82568.0,82567.0,0.30414821]
[1743868095288,0.00156001,82568.0,82567.0,0.30514821]
[1743868095489,0.09216001,82568.0,82567.0,0.30514821]
[1743868097683,0.09216001,82568.0,82567.0,0.24456638]
[1743868099083,0.0906,82568.0,82567.0,0.24456638]
[1743868099687,0.0906,82568.0,82567.0,0.14704814]
[1743868099887,0.09212,82568.0,82567.0,0.14704814]
[1743868100394,0.09212,82568.0,82567.0,0.0858118]
[1743868100589,0.09212,82568.0,82566.0,0.5417127]
[1743868100789,0.0934,82567.0,82566.0,0.5417127]
[1743868101783,0.0934,82567.0,82566.0,0.6800127]
[1743868101989,0.0934,82567.0,82566.0,0.4579]
[1743868102186,0.0934,82567.0,82566.0,0.3618]
[1743868102500,0.0934,82567.0,82566.0,0.001]
[1743868103088,0.18952,82567.0,82566.0,0.001]
[1743868103695,0.18952,82567.0,82566.0,0.002]
[1743868105195,0.18952,82567.0,82566.0,0.0868128]
[1743868105794,0.19052,82567.0,82566.0,0.0868128]
[1743868106702,0.19052,82567.0,82566.0,0.0937]
[1743868107102,0.19152,82567.0,82566.0,0.1835128]
[1743868107905,0.19052,82567.0,82566.0,0.1805128]
[1743868108805,0.19052,82567.0,82566.0,0.0868128]
[1743868109304,0.18952,82567.0,82566.0,0.005]
[1743868109707,0.18952,82567.0,82564.0,0.05364]
[1743868110105,0.18952,82567.0,82564.0,0.23597244]
[1743868110306,0.18952,82567.0,82566.0,0.0848128]
[1743868110508,0.18952,82567.0,82563.0,0.3608]
[1743868110805,0.0938,82566.0,82563.0,0.0848156]
[1743868111006,0.0938,82566.0,82564.0,0.001]
[1743868111204,0.1899,82565.0,82564.0,0.001]
[1743868111816,0.1899,82565.0,82564.0,0.0858149]
[1743868112411,0.1899,82565.0,82564.0,0.002]
[1743868112810,0.1899,82565.0,82563.0,0.001]
[1743868113206,0.1909,82565.0,82563.0,0.0858157]
[1743868113606,0.1909,82565.0,82563.0,0.0848157]
[1743868113806,0.1919,82565.0,82564.0,0.001]
[1743868114604,0.1919,82565.0,82562.0,0.0848166]
[1743868114805,0.1919,82565.0,82563.0,0.0848158]
[1743868115211,0.1919,82565.0,82561.0,0.3608]
[1743868115399,0.1919,82565.0,82554.0,0.3608]
[1743868115400,0.084817,82562.0,82554.0,0.3608]
[1743868115599,0.0424102,82559.0,82550.0,0.11284629]
[1743868115808,0.0424102,82559.0,82547.0,0.08501355]
[1743868115809,0.0848221,82557.0,82556.0,0.55753817]
[1743868116104,0.0424125,82555.0,82547.0,0.00018165]
[1743868116307,0.0997,82554.0,82547.0,0.00018165]
[1743868116507,0.1845252,82554.0,82547.0,0.00018165]
[1743868116708,0.0908,82553.0,82547.0,0.00018165]
[1743868117614,0.1756265,82553.0,82547.0,0.00018165]
[1743868118203,0.0908,82553.0,82547.0,0.00018165]
[1743868118404,0.18009864,82550.0,82547.0,0.00018165]
[1743868118813,0.0908,82549.0,82545.0,0.30039982]
[1743868119011,0.09232,82549.0,82547.0,0.0848321]
[1743868119314,0.0982,82548.0,82546.0,0.084833]
[1743868119707,0.0961,82547.0,82545.0,0.34281702]
[1743868120008,0.0961,82547.0,82543.0,0.3608]
[1743868120213,0.0982,82546.0,82543.0,0.3608]
[1743868120518,0.0848368,82543.0,82540.0,0.07077143]
[1743868120705,0.2824,82542.0,82538.0,0.00018165]
[1743868120905,0.2824,82542.0,82538.0,0.09769989]
[1743868121111,0.2824,82542.0,82538.0,0.0091734]
[1743868121112,0.0848398,82540.0,82538.0,0.0091734]
[1743868121305,0.1922,82539.0,82538.0,0.0091734]
[1743868121915,0.1922,82539.0,82536.0,0.30939157]
[1743868122210,0.1922,82539.0,82536.0,0.36044815]
[1743868122409,0.1922,82539.0,82538.0,0.0848416]
[1743868122606,0.19372,82539.0,82538.0,0.0848416]
[1743868123111,0.19372,82539.0,82538.0,0.1761416]
[1743868123808,0.19572,82539.0,82538.0,0.1761416]
[1743868124113,0.19572,82539.0,82538.0,0.18539524]
[1743868125109,0.19572,82539.0,82538.0,0.00925364]
[1743868125415,0.19572,82539.0,82536.0,0.36044815]
[1743868125615,0.0966,82538.0,82536.0,0.36044815]
[1743868126008,0.1939,82537.0,82536.0,0.36951284]
[1743868126610,0.2787426,82537.0,82536.0,0.06012127]
[1743868126808,0.2787426,82537.0,82529.0,0.00181752]
[1743868126809,0.0424218,82536.0,82529.0,0.00181752]
[1743868127007,0.0424218,82536.0,82526.0,0.0848536]
[1743868127213,0.1949,82535.0,82526.0,0.1697067]
[1743868127410,0.2373226,82535.0,82524.0,0.0924]
[1743868127615,0.19642,82535.0,82526.0,0.0848529]
[1743868127815,0.2812647,82535.0,82527.0,0.08545856]
[1743868128119,0.19642,82535.0,82530.0,0.55771982]
[1743868128417,0.2822647,82535.0,82530.0,0.55771982]
[1743868128617,0.19742,82535.0,82530.0,0.55771982]
[1743868128802,0.19742,82535.0,82530.0,0.56693458]
[1743868129313,0.19742,82535.0,82530.0,0.61899561]
[1743868130619,0.19842,82535.0,82530.0,0.61899561]
[1743868130915,0.19842,82535.0,82530.0,0.55841378]
[1743868132016,0.2832649,82535.0,82530.0,0.55841378]
[1743868132316,0.0848459,82534.0,82530.0,0.55841378]
[1743868132515,0.2393223,82535.0,82530.0,0.55841378]
[1743868132721,0.1829,82533.0,82530.0,0.55841378]
[1743868132912,0.267747,82533.0,82530.0,0.55841378]
[1743868133108,0.0848488,82531.0,82530.0,0.55841378]
[1743868133514,0.6285488,82531.0,82530.0,0.06145744]
[1743868133714,0.6300688,82531.0,82530.0,0.06145744]
[1743868134021,0.6300688,82531.0,82530.0,0.00087561]
[1743868134216,0.0848519,82528.0,82527.0,0.00964509]
[1743868134520,0.0863719,82528.0,82527.0,0.00964509]
[1743868134719,0.19262,82528.0,82527.0,0.00964509]
[1743868135018,0.2774719,82528.0,82527.0,0.00964509]
[1743868135529,0.2784719,82528.0,82527.0,0.00964509]
[1743868136511,0.2784719,82528.0,82527.0,0.0616576]
[1743868137014,0.2784719,82528.0,82527.0,0.00107577]
[1743868137219,0.19462,82528.0,82520.0,0.11284629]
[1743868137420,0.0848591,82521.0,82520.0,0.20764629]
[1743868137619,0.0424269,82526.0,82520.0,0.20764629]
[1743868137919,0.0848582,82522.0,82520.0,0.20764629]
[1743868138118,0.1823,82521.0,82520.0,0.20764629]
[1743868138315,0.2671591,82521.0,82520.0,0.00894957]
[1743868138523,0.0848601,82520.0,82519.0,0.00018165]
[1743868138720,0.0863801,82520.0,82519.0,0.00018165]
[1743868138920,0.18172,82520.0,82519.0,0.00018165]
[1743868140021,0.18172,82520.0,82518.0,0.07847129]
[1743868140218,0.2665802,82520.0,82518.0,0.07847129]
[1743868140418,0.2675802,82520.0,82518.0,0.07847129]
[1743868140625,0.0848611,82519.0,82518.0,0.07847129]
[1743868141024,0.2669611,82519.0,82518.0,0.07847129]
[1743868141524,0.1821,82519.0,82518.0,0.07847129]
[1743868141727,0.18362,82519.0,82518.0,0.07847129]
[1743868142320,0.00152,82519.0,82518.0,0.26896407]
[1743868142523,0.08678331,82526.0,82521.0,0.0848585]
[1743868142726,0.08678331,82526.0,82523.0,0.084857]
[1743868142922,0.08678331,82526.0,82524.0,0.0965]
[1743868143126,0.08678331,82526.0,82524.0,0.03591817]
[1743868143318,0.092,82525.0,82524.0,0.03591817]
[1743868143630,0.092,82525.0,82524.0,0.09751824]
[1743868143931,0.09356001,82525.0,82524.0,0.09751824]
[1743868144614,0.09356001,82525.0,82524.0,0.18237424]
[1743868144819,0.09356001,82525.0,82524.0,0.084856]
[1743868145420,0.03570401,82531.0,82524.0,0.084856]
[1743868145628,0.505,82568.0,82551.0,0.0848282]
[1743868145830,0.1968985,82569.0,82565.0,0.0848131]
[1743868146025,0.19189275,82569.0,82568.0,0.3608]
[1743868146230,0.19189275,82569.0,82568.0,0.30021817]
[1743868146628,0.19189275,82569.0,82568.0,0.30923764]
[1743868147123,0.19289275,82569.0,82568.0,0.30923764]
[1743868147323,0.19289275,82569.0,82568.0,0.31023764]
[1743868149218,0.19289275,82569.0,82568.0,0.24965581]
[1743868149618,0.00104001,82569.0,82568.0,0.24865581]
[1743868149817,0.00204001,82569.0,82568.0,0.25365581]
[1743868150223,0.00304001,82569.0,82568.0,0.25465581]
[1743868150424,0.00204001,82569.0,82568.0,0.33646661]
[1743868150727,0.00304001,82569.0,82568.0,0.33646661]
[1743868151022,0.00304001,82569.0,82568.0,0.33946661]
[1743868151219,0.00304001,82569.0,82568.0,0.43456661]
[1743868152330,0.1937,82574.0,82568.0,0.34975581]
[1743868152730,0.1937,82574.0,82569.0,0.0848091]
[1743868153236,0.1937,82574.0,82571.0,0.0848073]
[1743868153426,0.1937,82574.0,82572.0,0.0848061]
[1743868153627,0.1937,82574.0,82570.0,0.0848079]
[1743868153934,0.1957,82574.0,82569.0,0.0983]
[1743868154325,0.1957,82574.0,82569.0,0.1013]
[1743868154522,0.1957,82574.0,82570.0,0.0848082]
[1743868154731,0.1957,82574.0,82570.0,0.0698082]
[1743868154939,0.1957,82574.0,82570.0,0.1651082]
[1743868155130,0.19642,82574.0,82570.0,0.1657482]
[1743868155442,0.19642,82574.0,82570.0,0.09594]
[1743868155736,0.19642,82574.0,82573.0,0.0848056]
[1743868155938,0.0004,82588.0,82576.0,0.0848016]
[1743868156139,0.0012,82588.0,82581.0,0.3608]
[1743868156340,0.0012,82588.0,82582.0,0.0905]
[1743868156541,0.0928,82587.0,82582.0,0.13552972]
[1743868157238,0.07989695,82587.0,82582.0,0.13552972]
[1743868157427,0.07989695,82587.0,82583.0,0.099]
[1743868157628,0.07989695,82587.0,82583.0,0.09972]
[1743868157830,0.08189695,82587.0,82583.0,0.09972]
[1743868158328,0.002,82587.0,82586.0,0.0847923]
[1743868158530,0.0004,82588.0,82587.0,0.0847913]
[1743868159129,0.00104,82588.0,82587.0,0.00072]
[1743868159427,0.0928,82592.0,82587.0,0.3608]
[1743868159828,0.0928,82592.0,82587.0,0.4455912]
[1743868160039,0.0928,82592.0,82588.0,0.0532]
[1743868160640,0.0928,82592.0,82587.0,0.3608]
[1743868160838,0.0938,82592.0,82588.0,0.1379502]
[1743868161144,0.1007,82591.0,82588.0,0.05316]
[1743868161344,0.1007,82591.0,82587.0,0.43816857]
[1743868161638,0.0936,82590.0,82587.0,0.43816857]